bitfinex/quotes_BTCUSD_20240810
["timestamp","ask_amount","ask_price","bid_price","bid_amount"]
[1723328002256,0.20239446,61091.0,61090.0,0.16488]
[1723328002624,0.21647504,61091.0,61090.0,0.16488]
[1723328002818,0.31647504,61091.0,61090.0,0.16488]
[1723328003059,0.31647504,61091.0,61090.0,0.0788]
[1723328003060,0.72570004,61091.0,61090.0,0.0788]
[1723328003258,0.72570004,61091.0,61084.0,0.0644]
[1723328003259,0.46226646,61091.0,61085.0,0.00168]
[1723328003458,0.49110346,61086.0,61085.0,0.00168]
[1723328003729,0.68083013,61086.0,61085.0,0.00168]
[1723328003997,0.69275941,61086.0,61085.0,0.00168]
[1723328004202,0.69275941,61086.0,61085.0,0.02168]
[1723328004372,0.52905641,61086.0,61085.0,0.02168]
[1723328004730,0.53905641,61086.0,61085.0,0.02168]
[1723328004915,0.51314466,61086.0,61085.0,0.02168]
[1723328005113,0.53906738,61086.0,61085.0,0.02168]
[1723328005355,0.163719,61080.0,61079.0,0.01]
[1723328005554,0.44723829,61080.0,61079.0,0.01]
[1723328005771,0.081861,61079.0,61078.0,0.01]
[1723328005969,0.50217807,61079.0,61078.0,0.01]
[1723328006114,0.62909818,61079.0,61078.0,0.01]
[1723328006313,0.245587,61078.0,61077.0,0.01]
[1723328006531,0.75971032,61078.0,61077.0,0.01]
[1723328006952,0.75975272,61078.0,61077.0,0.01]
[1723328007156,0.75975272,61078.0,61077.0,0.02168]
[1723328008933,0.75975064,61078.0,61077.0,0.02168]
[1723328009119,0.75976802,61078.0,61077.0,0.02168]
[1723328009429,0.76076802,61078.0,61077.0,0.02168]
[1723328009638,0.75976802,61078.0,61077.0,0.02168]
[1723328010563,0.77440727,61078.0,61077.0,0.02168]
[1723328010910,0.77940727,61078.0,61077.0,0.02168]
[1723328011106,0.77943021,61078.0,61077.0,0.02168]
[1723328012093,0.77943021,61078.0,61077.0,0.01]
[1723328012375,0.77943021,61078.0,61077.0,0.02168]
[1723328013205,0.409317,61077.0,61076.0,0.02168]
[1723328013401,0.59916658,61077.0,61076.0,0.02168]
[1723328013603,0.6110926,61077.0,61076.0,0.02168]
[1723328014767,0.6190926,61077.0,61076.0,0.01168]
[1723328015724,0.59305794,61077.0,61076.0,0.02168]
[1723328015926,0.409337,61074.0,61073.0,0.01]
[1723328016168,0.59918781,61074.0,61073.0,0.01]
[1723328016363,0.585078,61074.0,61073.0,0.01]
[1723328016569,0.585078,61074.0,61071.0,0.0010152]
[1723328016570,0.409352,61072.0,61071.0,0.0010152]
[1723328016743,0.83602544,61072.0,61071.0,0.0010152]
[1723328016983,1.05415419,61072.0,61071.0,0.0010152]
[1723328017093,1.07725608,61072.0,61071.0,0.0110152]
[1723328017297,1.07725698,61072.0,61071.0,0.0226952]
[1723328017518,1.05414104,61072.0,61071.0,0.0226952]
[1723328017720,1.07725577,61072.0,61071.0,0.0226952]
[1723328017929,1.17466844,61072.0,61071.0,0.0246952]
[1723328018351,1.17466652,61072.0,61071.0,0.0246952]
[1723328019124,1.17966652,61072.0,61071.0,0.0246952]
[1723328019323,1.17966652,61072.0,61071.0,0.0110152]
[1723328019530,1.18466652,61072.0,61071.0,0.0110152]
[1723328020157,1.0872322,61072.0,61071.0,0.0110152]
[1723328020358,1.18465979,61072.0,61071.0,0.0010152]
[1723328021087,1.18501272,61072.0,61071.0,0.0010152]
[1723328021651,1.11485279,61072.0,61071.0,0.0010152]
[1723328021928,1.18517752,61072.0,61071.0,0.0010152]
[1723328022325,1.18540789,61072.0,61071.0,0.0010152]
[1723328023583,1.18540538,61072.0,61071.0,0.0010152]
[1723328023783,1.23177622,61072.0,61071.0,0.0010152]
[1723328023983,1.35355558,61072.0,61071.0,0.0010152]
[1723328024619,2.09177622,61072.0,61071.0,0.0010152]
[1723328025664,1.94797622,61072.0,61071.0,0.0836152]
[1723328025964,1.98785504,61072.0,61071.0,0.0010152]
[1723328026168,1.7023414,61072.0,61071.0,0.0110152]
[1723328026343,1.7023414,61072.0,61071.0,0.0226952]
[1723328026520,1.70198802,61072.0,61071.0,0.0226952]
[1723328027540,1.53824702,61072.0,61071.0,0.0226952]
[1723328027720,1.53824702,61072.0,61071.0,0.1052952]
[1723328027924,1.49050849,61072.0,61071.0,0.1052952]
[1723328028440,1.4905114,61072.0,61071.0,0.1052952]
[1723328028633,1.4905114,61072.0,61071.0,0.0836152]
[1723328028859,1.70206191,61072.0,61071.0,0.0836152]
[1723328029039,1.61139444,61072.0,61071.0,0.1052952]
[1723328029243,1.65425161,61072.0,61071.0,0.1052952]
[1723328031379,1.58117808,61072.0,61071.0,0.1052952]
[1723328033091,1.65426648,61072.0,61071.0,0.1052952]
[1723328033488,1.62816835,61072.0,61071.0,0.1052952]
[1723328033768,1.6299208,61072.0,61071.0,0.1052952]
[1723328034283,1.58118993,61072.0,61071.0,0.1052952]
[1723328035237,1.77514731,61072.0,61071.0,0.1052952]
[1723328035461,1.62816835,61072.0,61071.0,0.1052952]
[1723328035661,1.77514636,61072.0,61071.0,0.1052952]
[1723328035842,1.70205796,61072.0,61071.0,0.1052952]
[1723328036045,1.77514636,61072.0,61071.0,0.1052952]
[1723328036237,1.70205796,61072.0,61071.0,0.1052952]
[1723328036442,1.77514636,61072.0,61071.0,0.1052952]
[1723328037458,1.77514636,61072.0,61071.0,0.0936152]
[1723328037856,1.70205796,61072.0,61071.0,0.0936152]
[1723328038191,1.62539487,61072.0,61071.0,0.0010152]
[1723328038352,1.70216013,61072.0,61071.0,0.0026952]
[1723328038546,1.79961134,61072.0,61071.0,0.0026952]
[1723328038751,1.86214334,61072.0,61071.0,0.0010152]
[1723328038954,1.88650614,61072.0,61071.0,0.0010152]
[1723328039156,2.05024714,61072.0,61071.0,0.0010152]
[1723328039355,1.92843313,61072.0,61071.0,0.0010152]
[1723328040926,1.78135295,61072.0,61071.0,0.0010152]
[1723328041131,1.92884475,61072.0,61071.0,0.0010152]
[1723328041700,1.95184475,61072.0,61071.0,0.0010152]
[1723328042710,1.95188104,61072.0,61071.0,0.0010152]
[1723328044132,1.9468972,61072.0,61071.0,0.0010152]
[1723328044447,1.87137829,61072.0,61071.0,0.0010152]
[1723328044652,1.95589731,61072.0,61071.0,0.0010152]
[1723328045622,1.97821731,61072.0,61071.0,0.0010152]
[1723328045828,1.97828239,61072.0,61071.0,0.0010152]
[1723328047579,2.13745439,61072.0,61071.0,0.0010152]
[1723328047746,2.32889821,61072.0,61071.0,0.0010152]
[1723328047948,2.06814495,61072.0,61071.0,0.0010152]
[1723328048204,2.32095675,61072.0,61071.0,0.0010152]
[1723328048388,2.16178475,61072.0,61071.0,0.0010152]
[1723328048846,2.16187506,61072.0,61071.0,0.0010152]
[1723328050262,2.04873339,61072.0,61071.0,0.0010152]
[1723328050727,1.97043339,61072.0,61071.0,0.0010152]
[1723328051080,1.90873339,61072.0,61071.0,0.0010152]
[1723328051619,1.87382036,61072.0,61071.0,0.0010152]
[1723328051825,1.80835334,61072.0,61071.0,0.0010152]
[1723328052188,1.88556878,61072.0,61071.0,0.0010152]
[1723328054417,1.81489768,61072.0,61071.0,0.0010152]
[1723328054659,1.88550035,61072.0,61071.0,0.0010152]
[1723328054786,1.81489768,61072.0,61071.0,0.0010152]
[1723328055132,1.88550068,61072.0,61071.0,0.0010152]
[1723328055680,1.88537356,61072.0,61071.0,0.0010152]
[1723328056274,1.96597356,61072.0,61071.0,0.0010152]
[1723328056470,1.96605528,61072.0,61071.0,0.0010152]
[1723328057348,1.96583852,61072.0,61071.0,0.0010152]
[1723328059452,1.88862494,61072.0,61071.0,0.0010152]
[1723328059654,1.96533574,61072.0,61071.0,0.0010152]
[1723328061373,2.13002956,61072.0,61071.0,0.0010152]
[1723328061707,1.96533574,61072.0,61071.0,0.0010152]
[1723328062130,2.13002956,61072.0,61071.0,0.0010152]
[1723328063317,2.12999897,61072.0,61071.0,0.0010152]
[1723328065162,2.13004812,61072.0,61071.0,0.0010152]
[1723328065360,2.05968142,61072.0,61071.0,0.0010152]
[1723328065578,2.13005761,61072.0,61071.0,0.0010152]
[1723328066939,1.98293187,61072.0,61071.0,0.0010152]
[1723328067149,2.13009269,61072.0,61071.0,0.0010152]
[1723328067346,2.13009268,61072.0,61071.0,0.0010152]
[1723328068150,2.07805593,61072.0,61071.0,0.0010152]
[1723328068373,2.13038038,61072.0,61071.0,0.0010152]
[1723328068752,2.243035,61072.0,61071.0,0.0010152]
[1723328071049,2.2430875,61072.0,61071.0,0.0010152]
[1723328071961,2.24320736,61072.0,61071.0,0.0010152]
[1723328072163,2.07827246,61072.0,61071.0,0.0010152]
[1723328072654,2.10127246,61072.0,61071.0,0.0010152]
[1723328073510,2.08727246,61072.0,61071.0,0.0010152]
[1723328073747,1.91181165,61072.0,61071.0,0.0010152]
[1723328073990,2.10190584,61072.0,61071.0,0.0010152]
[1723328074469,2.08790584,61072.0,61071.0,0.0010152]
[1723328074701,1.82723805,61072.0,61071.0,0.0010152]
[1723328074944,2.08799495,61072.0,61071.0,0.0010152]
[1723328075170,2.10199495,61072.0,61071.0,0.0010152]
[1723328078294,2.03140479,61072.0,61071.0,0.0010152]
[1723328078503,2.10192493,61072.0,61071.0,0.0010152]
[1723328078711,2.10202159,61072.0,61071.0,0.0010152]
[1723328078915,2.10202164,61072.0,61071.0,0.0010152]
[1723328079098,2.10202177,61072.0,61071.0,0.0010152]
[1723328079300,2.10202184,61072.0,61071.0,0.0010152]
[1723328080719,2.10202629,61072.0,61071.0,0.0010152]
[1723328081193,2.10203052,61072.0,61071.0,0.0010152]
[1723328082519,1.91561847,61072.0,61071.0,0.0766152]
[1723328082855,1.65449705,61072.0,61071.0,0.0766152]
[1723328083052,2.07963417,61072.0,61071.0,0.0766152]
[1723328083462,2.07963417,61072.0,61071.0,0.0782952]
[1723328083665,1.84452527,61072.0,61071.0,0.0766152]
[1723328083872,2.07935135,61072.0,61071.0,0.0766152]
[1723328084542,2.07935135,61072.0,61071.0,0.0782952]
[1723328084747,2.07935135,61072.0,61071.0,0.0766152]
[1723328085706,2.07935135,61072.0,61071.0,0.0782952]
[1723328085913,2.07935135,61072.0,61071.0,0.0766152]
[1723328086265,1.88889315,61072.0,61071.0,0.0766152]
[1723328086500,2.07936089,61072.0,61071.0,0.0766152]
[1723328086675,1.83501989,61072.0,61071.0,0.0982952]
[1723328086847,1.91561989,61072.0,61071.0,0.0982952]
[1723328087216,1.80247786,61072.0,61071.0,0.0982952]
[1723328087415,1.9675803,61072.0,61071.0,0.0982952]
[1723328087620,1.9675803,61072.0,61071.0,0.0882952]
[1723328087932,1.9675803,61072.0,61071.0,0.0766152]
[1723328088130,1.80247786,61072.0,61071.0,0.0766152]
[1723328088556,1.80255671,61072.0,61071.0,0.0766152]
[1723328088965,1.725231,61072.0,61071.0,0.0766152]
[1723328089163,1.80270564,61072.0,61071.0,0.0766152]
[1723328089494,1.80270565,61072.0,61071.0,0.0766152]
[1723328089682,1.80270565,61072.0,61071.0,0.0866152]
[1723328089856,1.80270565,61072.0,61071.0,0.0982952]
[1723328090443,1.65449705,61072.0,61071.0,0.0766152]
[1723328090646,1.96772251,61072.0,61071.0,0.0766152]
[1723328091003,1.80261308,61072.0,61071.0,0.0766152]
[1723328091219,1.96772372,61072.0,61071.0,0.0766152]
[1723328091558,1.96772372,61072.0,61071.0,0.0866152]
[1723328092311,1.96781699,61072.0,61071.0,0.0866152]
[1723328093312,1.96782433,61072.0,61071.0,0.0766152]
[1723328093516,1.96782433,61072.0,61071.0,0.0866152]
[1723328093700,1.80270635,61072.0,61071.0,0.0866152]
[1723328093901,1.96644735,61072.0,61071.0,0.0866152]
[1723328094202,1.81823805,61072.0,61071.0,0.0866152]
[1723328094408,1.96640485,61072.0,61071.0,0.0766152]
[1723328094835,1.9664376,61072.0,61071.0,0.0010152]
[1723328095690,2.07987641,61072.0,61071.0,0.0010152]
[1723328095891,1.8626561,61072.0,61071.0,0.0010152]
[1723328096097,2.08012224,61072.0,61071.0,0.0010152]
[1723328096463,1.88906184,61072.0,61071.0,0.0010152]
[1723328096685,2.08001042,61072.0,61071.0,0.0010152]
[1723328097863,2.00897408,61072.0,61071.0,0.0010152]
[1723328098064,2.07972131,61072.0,61071.0,0.0010152]
[1723328098731,2.07979434,61072.0,61071.0,0.0010152]
[1723328099350,2.00903076,61072.0,61071.0,0.0010152]
[1723328099668,1.88726603,61072.0,61071.0,0.1700952]
[1723328099808,1.72213556,61072.0,61071.0,0.1700952]
[1723328100222,1.72212829,61072.0,61071.0,0.1700952]
[1723328101157,1.72164747,61072.0,61071.0,0.1584152]
[1723328101558,1.72164747,61072.0,61071.0,0.1700952]
[1723328101756,1.72145157,61072.0,61071.0,0.1700952]
[1723328102425,1.72145178,61072.0,61071.0,0.1700952]
[1723328103394,1.55771078,61072.0,61071.0,0.1700952]
[1723328103557,0.69771078,61072.0,61071.0,0.1700952]
[1723328104474,0.6969372,61072.0,61071.0,0.1700952]
[1723328105088,1.3569372,61072.0,61071.0,0.1700952]
[1723328105477,1.28663702,61072.0,61071.0,0.1700952]
[1723328105684,1.35699547,61072.0,61071.0,0.1700952]
[1723328107714,1.19325447,61072.0,61071.0,0.1700952]
[1723328107938,1.28663702,61072.0,61071.0,0.1700952]
[1723328108101,1.35701915,61072.0,61071.0,0.1700952]
[1723328108770,1.35701915,61072.0,61071.0,0.2519352]
[1723328109146,1.19327815,61072.0,61071.0,0.2519352]
[1723328109488,1.35701915,61072.0,61071.0,0.2519352]
[1723328109856,1.28699256,61072.0,61071.0,0.2519352]
[1723328110619,1.45073356,61072.0,61071.0,0.2402552]
[1723328110871,1.52113964,61072.0,61071.0,0.2402552]
[1723328111888,1.35739864,61072.0,61071.0,0.2519352]
[1723328112288,1.21015605,61072.0,61071.0,0.2519352]
[1723328112846,1.37389705,61072.0,61071.0,0.2519352]
[1723328113048,1.21015605,61072.0,61071.0,0.2519352]
[1723328114413,1.28073808,61072.0,61071.0,0.2519352]
[1723328115644,1.28073808,61072.0,61071.0,0.2402552]
[1723328115873,1.28073808,61072.0,61071.0,0.1751552]
[1723328116119,1.44447908,61072.0,61071.0,0.1751552]
[1723328116343,1.44447908,61072.0,61071.0,0.0928552]
[1723328116557,1.45165724,61072.0,61071.0,0.0928552]
[1723328116702,1.52260748,61072.0,61071.0,0.0928552]
[1723328116905,1.6692086,61072.0,61071.0,0.0928552]
[1723328117105,1.49460748,61072.0,61071.0,0.0928552]
[1723328117508,1.68634848,61072.0,61071.0,0.0928552]
[1723328117771,1.57430748,61072.0,61071.0,0.0828552]
[1723328117975,1.66028829,61072.0,61071.0,0.0828552]
[1723328118235,1.75214487,61072.0,61071.0,0.0828552]
[1723328118432,1.60333805,61072.0,61071.0,0.0828552]
[1723328118614,1.73808557,61072.0,61071.0,0.0828552]
[1723328119003,1.75208557,61072.0,61071.0,0.0828552]
[1723328119334,1.73808557,61072.0,61071.0,0.0828552]
[1723328119541,1.81928557,61072.0,61071.0,0.0828552]
[1723328119739,1.57434341,61072.0,61071.0,0.0828552]
[1723328120015,1.66894341,61072.0,61071.0,0.0828552]
[1723328120242,1.60324341,61072.0,61071.0,0.0828552]
[1723328120443,1.60324341,61072.0,61071.0,0.1727552]
[1723328120566,1.52216133,61072.0,61071.0,0.1727552]
[1723328121218,1.66875727,61072.0,61071.0,0.1727552]
[1723328121592,1.6684974,61072.0,61071.0,0.1727552]
[1723328122860,1.52190146,61072.0,61071.0,0.1727552]
[1723328125180,1.52183753,61072.0,61071.0,0.1727552]
[1723328126136,1.52196005,61072.0,61071.0,0.1727552]
[1723328126333,1.6685805,61072.0,61071.0,0.1727552]
[1723328127556,1.7342805,61072.0,61071.0,0.0928552]
[1723328128352,1.6685805,61072.0,61071.0,0.0928552]
[1723328128845,1.59144333,61072.0,61071.0,0.0928552]
[1723328129106,1.66919602,61072.0,61071.0,0.0928552]
[1723328129372,1.66919594,61072.0,61071.0,0.0928552]
[1723328130060,1.66937562,61072.0,61071.0,0.0928552]
[1723328131579,2.06102532,61072.0,61071.0,0.0828552]
[1723328131787,2.22312888,61072.0,61071.0,0.0828552]
[1723328131960,0.556265,61070.0,61069.0,0.00412291]
[1723328132183,2.08324815,61070.0,61069.0,0.00412291]
[1723328132355,2.13815737,61070.0,61069.0,0.00412291]
[1723328132555,2.13813894,61070.0,61069.0,0.00412291]
[1723328132809,2.12981894,61070.0,61069.0,0.00412291]
[1723328133244,2.16613894,61070.0,61069.0,0.00412291]
[1723328133616,2.15781894,61070.0,61069.0,0.00412291]
[1723328133843,2.16613894,61070.0,61069.0,0.00412291]
[1723328135017,2.16613894,61070.0,61069.0,1e-08]
[1723328135426,0.881726,61066.0,61065.0,0.009152]
[1723328135770,0.40948,61053.0,61052.0,0.01]
[1723328136048,0.69970878,61053.0,61052.0,0.02168]
[1723328136294,0.70009152,61053.0,61052.0,0.02168]
[1723328136623,0.70009152,61053.0,61052.0,0.01]
[1723328137228,0.79775377,61053.0,61052.0,0.02168]
[1723328137431,0.79775377,61053.0,61052.0,0.01]
[1723328137432,0.81175377,61053.0,61052.0,0.01]
[1723328138061,0.8214253,61053.0,61052.0,0.01]
[1723328138267,0.72376305,61053.0,61052.0,0.01]
[1723328138516,0.72376305,61053.0,61052.0,0.02168]
[1723328138839,0.70976305,61053.0,61052.0,0.01]
[1723328139035,0.72376305,61053.0,61052.0,0.01]
[1723328139237,0.73776305,61053.0,61052.0,0.01]
[1723328139471,0.81096204,61053.0,61052.0,0.02168]
[1723328139584,0.78296204,61053.0,61052.0,0.02168]
[1723328140156,0.8109619,61053.0,61052.0,0.02168]
[1723328140369,0.81106961,61053.0,61052.0,0.02168]
[1723328141371,0.73787076,61053.0,61052.0,0.02168]
[1723328141934,0.72387076,61053.0,61052.0,0.02168]
[1723328142332,0.7830485,61053.0,61052.0,0.02168]
[1723328142755,0.8110485,61053.0,61052.0,0.02168]
[1723328143768,0.78452693,61053.0,61052.0,0.02168]
[1723328143969,0.81092356,61053.0,61052.0,0.02168]
[1723328144374,0.73774582,61053.0,61052.0,0.02168]
[1723328144801,0.70974582,61053.0,61052.0,0.02168]
[1723328145003,0.54595382,61053.0,61052.0,0.02168]
[1723328145166,0.57395382,61053.0,61052.0,0.16878]
[1723328145374,0.60871463,61053.0,61052.0,0.16878]
[1723328145563,0.54595382,61053.0,61052.0,0.16878]
[1723328145828,0.55995382,61053.0,61052.0,0.16878]
[1723328145972,0.55995382,61053.0,61052.0,0.10288]
[1723328146181,0.40616182,61053.0,61052.0,0.10288]
[1723328146373,0.45491786,61053.0,61052.0,0.1037952]
[1723328146835,0.63270986,61053.0,61052.0,0.1037952]
[1723328147711,0.46891786,61053.0,61052.0,0.1037952]
[1723328148051,0.60631323,61053.0,61052.0,0.1037952]
[1723328148253,0.46882614,61053.0,61052.0,0.1037952]
[1723328149464,0.4200701,61053.0,61052.0,0.1037952]
[1723328150116,0.42006702,61053.0,61052.0,0.1037952]
[1723328155363,0.42000958,61053.0,61052.0,0.1037952]
[1723328155580,0.42000861,61053.0,61052.0,0.1037952]
[1723328156381,0.46876465,61053.0,61052.0,0.1037952]
[1723328156950,0.44252123,61053.0,61052.0,0.1037952]
[1723328157151,0.46876956,61053.0,61052.0,0.1037952]
[1723328157936,0.44335323,61053.0,61052.0,0.1037952]
[1723328158143,0.46959767,61053.0,61052.0,0.1037952]
[1723328158590,0.46959488,61053.0,61052.0,0.1037952]
[1723328159529,0.54662671,61053.0,61052.0,0.1037952]
[1723328160787,0.46959488,61053.0,61052.0,0.1037952]
[1723328161041,0.54662685,61053.0,61052.0,0.1037952]
[1723328162087,0.54663367,61053.0,61052.0,0.1037952]
[1723328162287,0.54664381,61053.0,61052.0,0.1037952]
[1723328162468,0.5139323,61053.0,61052.0,0.1037952]
[1723328162677,0.54664415,61053.0,61052.0,0.1037952]
[1723328162888,0.5909711,61053.0,61052.0,0.1037952]
[1723328163129,0.5090751,61053.0,61052.0,0.1642952]
[1723328163324,0.41596958,61053.0,61052.0,0.1642952]
[1723328163540,0.33894241,61053.0,61052.0,0.1037952]
[1723328164217,0.38980222,61053.0,61052.0,0.1037952]
[1723328164376,0.41605544,61053.0,61052.0,0.1037952]
[1723328164980,0.38980139,61053.0,61052.0,0.1037952]
[1723328165219,0.49795057,61053.0,61052.0,0.1037952]
[1723328165457,0.47169739,61053.0,61052.0,0.1037952]
[1723328165661,0.49786202,61053.0,61052.0,0.1037952]
[1723328166193,0.49786194,61053.0,61052.0,0.1037952]
[1723328167006,0.49786194,61053.0,61052.0,0.0225952]
[1723328168641,0.66165394,61053.0,61052.0,0.0225952]
[1723328168770,0.70597273,61053.0,61052.0,0.0225952]
[1723328169551,0.55838919,61053.0,61052.0,0.0225952]
[1723328169751,0.66164499,61053.0,61052.0,0.0225952]
[1723328169883,0.70596311,61053.0,61052.0,0.0225952]
[1723328170315,0.70580265,61053.0,61052.0,0.0225952]
[1723328170720,0.70580602,61053.0,61052.0,0.0225952]
[1723328173425,0.70590907,61053.0,61052.0,0.0225952]
[1723328174072,0.70591388,61053.0,61052.0,0.0225952]
[1723328174635,0.70596912,61053.0,61052.0,0.0225952]
[1723328175249,0.70632796,61053.0,61052.0,0.0225952]
[1723328176618,0.70652088,61053.0,61052.0,0.0225952]
[1723328177395,0.70493827,61053.0,61052.0,0.0225952]
[1723328177569,0.78281588,61053.0,61052.0,0.0225952]
[1723328177793,0.70701588,61053.0,61052.0,0.0225952]
[1723328178945,0.87086375,61053.0,61052.0,0.0225952]
[1723328179331,0.87089445,61053.0,61052.0,0.0225952]
[1723328179708,0.87089445,61053.0,61052.0,0.0109152]
[1723328179907,0.93159445,61053.0,61052.0,0.0109152]
[1723328180334,0.93159445,61053.0,61052.0,0.0225952]
[1723328181153,1.09538645,61053.0,61052.0,0.0109152]
[1723328182149,1.06738645,61053.0,61052.0,0.0109152]
[1723328182351,1.09538645,61053.0,61052.0,0.0109152]
[1723328182646,1.08138645,61053.0,61052.0,0.0225952]
[1723328182850,1.06738645,61053.0,61052.0,0.0109152]
[1723328183210,1.17118645,61053.0,61052.0,0.0109152]
[1723328183412,1.96118645,61053.0,61052.0,0.0109152]
[1723328183617,0.470185,61052.0,61051.0,0.0001]
[1723328183818,0.470185,61052.0,61051.0,0.02178]
[1723328183819,0.98580718,61052.0,61051.0,0.02178]
[1723328183998,0.99617208,61052.0,61051.0,0.10108]
[1723328184412,0.99617208,61052.0,61051.0,0.02178]
[1723328184618,0.99617208,61052.0,61051.0,0.0101]
[1723328184838,0.9695885,61052.0,61051.0,0.02178]
[1723328185108,1.04058853,61052.0,61051.0,0.02178]
[1723328185310,0.89079453,61052.0,61051.0,0.02178]
[1723328185505,0.89079453,61052.0,61051.0,0.10108]
[1723328186049,0.90479453,61052.0,61051.0,0.10108]
[1723328186678,0.7561922,61052.0,61051.0,0.10108]
[1723328186922,1.05159223,61052.0,61051.0,0.10108]
[1723328187098,0.90480885,61052.0,61051.0,0.10108]
[1723328187291,0.90468928,61052.0,61051.0,0.16538]
[1723328188192,0.90468928,61052.0,61051.0,0.02178]
[1723328188960,0.8601619,61052.0,61051.0,0.02178]
[1723328190136,0.86013241,61052.0,61051.0,0.02178]
[1723328190499,0.86013235,61052.0,61051.0,0.02178]
[1723328191907,0.85813235,61052.0,61051.0,0.02178]
[1723328192315,0.85813235,61052.0,61051.0,0.0226952]
[1723328193131,0.85813235,61052.0,61051.0,0.1023952]
[1723328193132,1.00490451,61052.0,61051.0,0.1023952]
[1723328193334,0.78031737,61052.0,61051.0,0.1023952]
[1723328193537,0.85746769,61052.0,61051.0,0.1023952]
[1723328194342,1.00423758,61052.0,61051.0,0.1023952]
[1723328194767,0.85746769,61052.0,61051.0,0.1023952]
[1723328196062,0.30217982,61052.0,61051.0,0.1023952]
[1723328196265,0.48755819,61052.0,61051.0,0.1645952]
[1723328196802,0.65135219,61052.0,61051.0,0.1645952]
[1723328197014,0.69573352,61052.0,61051.0,0.1645952]
[1723328197252,0.57415834,61052.0,61051.0,0.1645952]
[1723328197826,0.69647342,61052.0,61051.0,0.1645952]
[1723328198245,0.51861993,61052.0,61051.0,0.1645952]
[1723328198672,0.68241393,61052.0,61051.0,0.1645952]
[1723328198819,0.69641384,61052.0,61051.0,0.1645952]
[1723328199026,0.66841384,61052.0,61051.0,0.1645952]
[1723328199585,0.50461984,61052.0,61051.0,0.1645952]
[1723328199905,0.42272284,61052.0,61051.0,0.1645952]
[1723328200106,0.30040776,61052.0,61051.0,0.1645952]
[1723328200327,0.31440776,61052.0,61051.0,0.1645952]
[1723328200860,0.32840776,61052.0,61051.0,0.1645952]
[1723328201454,0.40179008,61052.0,61051.0,0.1645952]
[1723328201655,0.32840776,61052.0,61051.0,0.1645952]
[1723328202053,0.4017096,61052.0,61051.0,0.1645952]
[1723328203792,0.4836066,61052.0,61051.0,0.1023952]
[1723328203952,0.67185244,61052.0,61051.0,0.1023952]
[1723328204149,0.57400915,61052.0,61051.0,0.1023952]
[1723328204533,0.67268444,61052.0,61051.0,0.1023952]
[1723328205352,0.57484115,61052.0,61051.0,0.1023952]
[1723328206274,0.54870282,61052.0,61051.0,0.1023952]
[1723328206518,0.57484939,61052.0,61051.0,0.1023952]
[1723328207569,0.64816675,61052.0,61051.0,0.1023952]
[1723328208089,0.57482234,61052.0,61051.0,0.0226952]
[1723328208502,0.41102834,61052.0,61051.0,0.1023952]
[1723328209644,0.48433402,61052.0,61051.0,0.1023952]
[1723328210304,0.4582145,61052.0,61051.0,0.1023952]
[1723328210478,0.48434175,61052.0,61051.0,0.1023952]
[1723328210882,0.48434094,61052.0,61051.0,0.1023952]
[1723328211498,0.48434802,61052.0,61051.0,0.1023952]
[1723328212251,0.64814202,61052.0,61051.0,0.1023952]
[1723328212452,0.69714045,61052.0,61051.0,0.0226952]
[1723328212779,0.69717239,61052.0,61051.0,0.0226952]
[1723328212908,0.57486828,61052.0,61051.0,0.0226952]
[1723328213313,0.71486828,61052.0,61051.0,0.0226952]
[1723328213948,0.83625751,61052.0,61051.0,0.0226952]
[1723328214143,1.00005151,61052.0,61051.0,0.0226952]
[1723328214342,1.63005151,61052.0,61051.0,0.0226952]
[1723328214813,1.6298724,61052.0,61051.0,0.0226952]
[1723328214943,1.62987193,61052.0,61051.0,0.0226952]
[1723328215138,1.55047193,61052.0,61051.0,0.0226952]
[1723328215340,1.47359735,61052.0,61051.0,0.0226952]
[1723328215546,1.5504776,61052.0,61051.0,0.0226952]
[1723328216096,1.6298776,61052.0,61051.0,0.0026952]
[1723328216271,1.6298776,61052.0,61051.0,0.0126952]
[1723328216454,1.63005391,61052.0,61051.0,0.0226952]
[1723328217617,1.55043974,61052.0,61051.0,0.0026952]
[1723328218500,1.55042555,61052.0,61051.0,0.0026952]
[1723328218711,1.47992867,61052.0,61051.0,0.0026952]
[1723328218915,1.55042628,61052.0,61051.0,0.0026952]
[1723328219317,1.5502808,61052.0,61051.0,0.0026952]
[1723328220685,1.7140748,61052.0,61051.0,0.0026952]
[1723328221478,1.63734307,61052.0,61051.0,0.0026952]
[1723328221800,1.55023639,61052.0,61051.0,0.0226952]
[1723328221940,1.40309682,61052.0,61051.0,0.0226952]
[1723328222141,1.55018006,61052.0,61051.0,0.0226952]
[1723328222337,0.59275644,61052.0,61051.0,0.0226952]
[1723328222538,0.69685396,61052.0,61051.0,0.0226952]
[1723328222999,0.57465653,61052.0,61051.0,0.0226952]
[1723328223355,0.65041004,61052.0,61051.0,0.0226952]
[1723328223558,0.62445612,61052.0,61051.0,0.0226952]
[1723328223790,0.65038397,61052.0,61051.0,0.0226952]
[1723328223994,0.69441281,61052.0,61051.0,0.0226952]
[1723328224186,0.57463048,61052.0,61051.0,0.0226952]
[1723328224392,0.65041224,61052.0,61051.0,0.0226952]
[1723328224694,0.69444534,61052.0,61051.0,0.0226952]
[1723328225523,0.65083981,61052.0,61051.0,0.0226952]
[1723328225861,0.81713264,61052.0,61051.0,0.0226952]
[1723328225973,0.69689774,61052.0,61051.0,0.0226952]
[1723328226176,0.41090618,61052.0,61051.0,0.0226952]
[1723328226387,0.53310374,61052.0,61051.0,0.1659952]
[1723328226588,0.41090618,61052.0,61051.0,0.1659952]
[1723328227264,0.57465062,61052.0,61051.0,0.1659952]
[1723328227469,0.69684818,61052.0,61051.0,0.1659952]
[1723328227669,0.69684818,61052.0,61051.0,0.1021952]
[1723328227872,0.81685968,61052.0,61051.0,0.1021952]
[1723328228081,0.81686022,61052.0,61051.0,0.1021952]
[1723328228239,0.6709095,61052.0,61051.0,0.1021952]
[1723328228433,0.69461549,61052.0,61051.0,0.1021952]
[1723328228631,0.85840949,61052.0,61051.0,0.1021952]
[1723328228917,1.60900949,61052.0,61051.0,0.0026952]
[1723328230867,1.77280349,61052.0,61051.0,0.0026952]
[1723328232719,1.77280349,61052.0,61051.0,0.0010152]
[1723328233049,1.77294913,61052.0,61051.0,0.0010152]
[1723328233610,1.62689082,61052.0,61051.0,0.0010152]
[1723328233818,1.77382888,61052.0,61051.0,0.0010152]
[1723328234233,1.7968291,61052.0,61051.0,0.0010152]
[1723328234996,1.7968291,61052.0,61051.0,0.0026952]
[1723328235655,1.7968291,61052.0,61051.0,0.0010152]
[1723328235968,1.79687509,61052.0,61051.0,0.0010152]
[1723328236976,1.79687509,61052.0,61051.0,0.0026952]
[1723328237609,1.62689082,61052.0,61051.0,0.0026952]
[1723328237741,1.7738416,61052.0,61051.0,0.0026952]
[1723328238939,1.77338021,61052.0,61051.0,0.0026952]
[1723328240559,1.54898621,61052.0,61051.0,0.0226952]
[1723328241806,1.54885978,61052.0,61051.0,0.0226952]